[Event "*** Titled Tuesday Blitz"]
[Site "Chess.com"]
[Date "2019.10.01"]
[Round "5"]
[White "Karacsonyi_Gellert"]
[Black "Zubrrr"]
[Result "0-1"]
[WhiteElo "2532"]
[BlackElo "2702"]
[TimeControl "180+2"]
[EndTime "14:13:52 PDT"]
[Termination "Zubrrr won by resignation"]

1. e4 {[%clk 0:03:01.9]} 1... c5 {[%clk 0:02:52.5]} 2. Nf3 {[%clk 0:03:01.9]}
2... d6 {[%clk 0:02:53.8]} 3. d4 {[%clk 0:03:02.9]} 3... cxd4 {[%clk 0:02:55.7]}
4. Nxd4 {[%clk 0:03:04.7]} 4... Nf6 {[%clk 0:02:57.2]} 5. Nc3 {[%clk 0:03:06]}
5... a6 {[%clk 0:02:58.5]} 6. Bc4 {[%clk 0:03:05.7]} 6... e6 {[%clk 0:02:59.5]}
7. O-O {[%clk 0:03:06.6]} 7... Be7 {[%clk 0:02:58.5]} 8. Bb3 {[%clk 0:03:07.7]}
8... O-O {[%clk 0:02:59.2]} 9. f4 {[%clk 0:03:09.2]} 9... Nc6 {[%clk 0:02:57.8]}
10. Be3 {[%clk 0:02:59.5]} 10... Qc7 {[%clk 0:02:53.1]} 11. Qf3 {[%clk
0:02:53.2]} 11... Nxd4 {[%clk 0:02:42.1]} 12. Bxd4 {[%clk 0:02:53.7]} 12... e5
{[%clk 0:02:43.4]} 13. fxe5 {[%clk 0:02:46.6]} 13... dxe5 {[%clk 0:02:42.3]} 14.
Qg3 {[%clk 0:02:47.7]} 14... Bc5 {[%clk 0:02:41.6]} 15. Bxc5 {[%clk 0:02:40.6]}
15... Qxc5+ {[%clk 0:02:41.9]} 16. Kh1 {[%clk 0:02:42.5]} 16... Qe7 {[%clk
0:01:59.7]} 17. Rad1 {[%clk 0:01:32.8]} 17... Kh8 {[%clk 0:01:31.3]} 18. Rd2
{[%clk 0:01:22.4]} 18... Bd7 {[%clk 0:01:17.2]} 19. Rdf2 {[%clk 0:01:14.9]}
19... Bc6 {[%clk 0:01:16.2]} 20. Bd5 {[%clk 0:01:11.6]} 20... Rad8 {[%clk
0:00:50.6]} 21. Bxc6 {[%clk 0:01:03.3]} 21... bxc6 {[%clk 0:00:52.5]} 22. Qh4
{[%clk 0:01:03.2]} 22... Rd6 {[%clk 0:00:46.4]} 23. h3 {[%clk 0:01:03.3]} 23...
Qe6 {[%clk 0:00:41.8]} 24. Rf5 {[%clk 0:01:00.9]} 24... Rd2 {[%clk 0:00:36.5]}
25. Qg5 {[%clk 0:00:57.8]} 25... Rxc2 {[%clk 0:00:33.9]} 26. Rxf6 {[%clk
0:00:36.6]} 26... gxf6 {[%clk 0:00:34.2]} 27. Rxf6 {[%clk 0:00:38.5]} 27... Qe7
{[%clk 0:00:33.9]} 28. Qf5 {[%clk 0:00:36.4]} 28... Rxb2 {[%clk 0:00:21.9]} 29.
a4 {[%clk 0:00:14.7]} 29... Rc2 {[%clk 0:00:22.7]} 30. Qf3 {[%clk 0:00:11.9]}
30... Rxc3 {[%clk 0:00:22.8]} 31. Qf5 {[%clk 0:00:09.7]} 31... Rg3 {[%clk
0:00:21.7]} 32. Kh2 {[%clk 0:00:09.8]} 32... Rg6 {[%clk 0:00:21.8]} 33. Rxg6
{[%clk 0:00:09.3]} 33... hxg6 {[%clk 0:00:21.6]} 34. Qg4 {[%clk 0:00:10.1]}
34... Kg7 {[%clk 0:00:21.1]} 35. Qe2 {[%clk 0:00:11]} 35... a5 {[%clk
0:00:21.6]} 36. Qc4 {[%clk 0:00:11.8]} 36... Qd6 {[%clk 0:00:21.5]} 37. Qe2
{[%clk 0:00:08]} 37... Qd4 {[%clk 0:00:21.1]} 38. Qg4 {[%clk 0:00:09]} 38... f5
{[%clk 0:00:19.2]} 39. Qg5 {[%clk 0:00:08.9]} 39... Qxe4 {[%clk 0:00:20.5]} 40.
Kh1 {[%clk 0:00:07.4]} 40... Rf7 {[%clk 0:00:19.8]} 41. h4 {[%clk 0:00:08.4]}
41... Qg4 {[%clk 0:00:19.9]} 42. Qd8 {[%clk 0:00:09]} 42... f4 {[%clk
0:00:19.5]} 43. Kh2 {[%clk 0:00:06.2]} 43... Qg3+ {[%clk 0:00:18.7]} 44. Kh1
{[%clk 0:00:05.6]} 44... Rb7 {[%clk 0:00:17.6]} 45. Qd1 {[%clk 0:00:05]} 45...
Qxh4+ {[%clk 0:00:18.4]} 46. Kg1 {[%clk 0:00:06.5]} 46... Qg3 {[%clk 0:00:17.2]}
47. Kh1 {[%clk 0:00:07.9]} 47... Re7 {[%clk 0:00:12.8]} 48. Qe2 {[%clk 0:00:07]}
48... e4 {[%clk 0:00:12.2]} 49. Qb2+ {[%clk 0:00:08]} 49... Kh7 {[%clk
0:00:12.6]} 50. Qf6 {[%clk 0:00:08.7]} 50... Rg7 {[%clk 0:00:09.7]} 51. Qb2
{[%clk 0:00:08.2]} 51... f3 {[%clk 0:00:10.8]} 52. gxf3 {[%clk 0:00:08.7]} 52...
Qxf3+ {[%clk 0:00:11.8]} 53. Kg1 {[%clk 0:00:07.3]} 53... Qg4+ {[%clk
0:00:12.6]} 54. Kh1 {[%clk 0:00:07]} 54... Rf7 {[%clk 0:00:12.3]} 55. Qh2+
{[%clk 0:00:07]} 55... Qh5 {[%clk 0:00:13.1]} 56. Qxh5+ {[%clk 0:00:06.1]} 56...
gxh5 {[%clk 0:00:14.1]} 57. Kg2 {[%clk 0:00:08]} 57... Rf5 {[%clk 0:00:15]} 58.
Kg3 {[%clk 0:00:09]} 58... Kg6 {[%clk 0:00:16.9]} 59. Kh4 {[%clk 0:00:10.1]}
59... Rf4+ {[%clk 0:00:18.3]} 60. Kg3 {[%clk 0:00:11.2]} 60... Kg5 {[%clk
0:00:20.2]} 61. Kh3 {[%clk 0:00:12.4]} 61... Rf3+ {[%clk 0:00:21.2]} 62. Kg2
{[%clk 0:00:13.7]} 62... Kg4 {[%clk 0:00:23.1]} 63. Kh2 {[%clk 0:00:15.1]} 63...
Rf2+ {[%clk 0:00:24.4]} 64. Kg1 {[%clk 0:00:16.3]} 64... Kg3 {[%clk 0:00:26.3]}
0-1

[Event "*** Titled Tuesday Blitz"]
[Site "Chess.com"]
[Date "2019.10.01"]
[Round "5"]
[White "Jospem"]
[Black "Grischuk"]
[Result "1-0"]
[WhiteElo "2893"]
[BlackElo "3046"]
[TimeControl "180+2"]
[EndTime "14:13:55 PDT"]
[Termination "Jospem won by resignation"]

1. c4 {[%clk 0:03:01.9]} 1... g6 {[%clk 0:02:58.8]} 2. Nf3 {[%clk 0:03:03.2]}
2... Bg7 {[%clk 0:02:59.6]} 3. g3 {[%clk 0:03:04.8]} 3... c5 {[%clk 0:02:59.1]}
4. Bg2 {[%clk 0:03:06]} 4... Nc6 {[%clk 0:03:00.6]} 5. O-O {[%clk 0:03:07.9]}
5... e6 {[%clk 0:03:00.2]} 6. Nc3 {[%clk 0:03:08.7]} 6... Nge7 {[%clk
0:03:01.5]} 7. e3 {[%clk 0:03:10.2]} 7... O-O {[%clk 0:02:55.3]} 8. b3 {[%clk
0:03:11.4]} 8... d5 {[%clk 0:02:49.5]} 9. Bb2 {[%clk 0:03:10.8]} 9... dxc4
{[%clk 0:02:48.3]} 10. bxc4 {[%clk 0:03:11.5]} 10... Qd3 {[%clk 0:02:49.5]} 11.
Na4 {[%clk 0:02:50.4]} 11... Bxb2 {[%clk 0:02:23.9]} 12. Nxb2 {[%clk 0:02:50.9]}
12... Qd6 {[%clk 0:02:25.5]} 13. Qe2 {[%clk 0:02:44.5]} 13... b6 {[%clk
0:02:21.9]} 14. d3 {[%clk 0:02:40.8]} 14... Bb7 {[%clk 0:02:21.6]} 15. Rfd1
{[%clk 0:02:41.3]} 15... Rad8 {[%clk 0:02:21]} 16. Na4 {[%clk 0:02:31.6]} 16...
e5 {[%clk 0:02:02.7]} 17. Nc3 {[%clk 0:02:32.2]} 17... f5 {[%clk 0:02:00.6]} 18.
a3 {[%clk 0:02:24.8]} 18... h6 {[%clk 0:01:58.4]} 19. Rab1 {[%clk 0:02:03.5]}
19... Kh7 {[%clk 0:01:57.6]} 20. Ne1 {[%clk 0:01:58.3]} 20... Na5 {[%clk
0:01:53]} 21. Bxb7 {[%clk 0:01:57.5]} 21... Nxb7 {[%clk 0:01:54.9]} 22. Nb5
{[%clk 0:01:58.6]} 22... Qb8 {[%clk 0:01:54.7]} 23. Nf3 {[%clk 0:01:55.3]} 23...
Na5 {[%clk 0:01:22.6]} 24. d4 {[%clk 0:01:44.6]} 24... cxd4 {[%clk 0:01:21.3]}
25. exd4 {[%clk 0:01:43.8]} 25... e4 {[%clk 0:01:22.7]} 26. d5 {[%clk
0:01:31.7]} 26... Rc8 {[%clk 0:00:52.1]} 27. d6 {[%clk 0:01:16]} 27... Nec6
{[%clk 0:00:52]} 28. Nfd4 {[%clk 0:01:11.8]} 28... Ne5 {[%clk 0:00:48.2]} 29. c5
{[%clk 0:01:06.5]} 29... Rf7 {[%clk 0:00:34.7]} 30. cxb6 {[%clk 0:01:01.1]}
30... axb6 {[%clk 0:00:34.8]} 31. Rbc1 {[%clk 0:00:53.1]} 31... Nac4 {[%clk
0:00:34.7]} 32. Rc3 {[%clk 0:00:37.5]} 32... Nxd6 {[%clk 0:00:16.3]} 33. Rxc8
{[%clk 0:00:28.5]} 33... Nxc8 {[%clk 0:00:18.2]} 34. Qa2 {[%clk 0:00:29]} 34...
Qb7 {[%clk 0:00:10.6]} 35. Ne6 {[%clk 0:00:21.6]} 35... Qe7 {[%clk 0:00:10.1]}
36. Nf4 {[%clk 0:00:16.4]} 36... Na7 {[%clk 0:00:07.8]} 37. Nd6 {[%clk
0:00:16.8]} 37... Rg7 {[%clk 0:00:08.3]} 38. Ne6 {[%clk 0:00:16.4]} 38... Rg8
{[%clk 0:00:07.3]} 39. Nf4 {[%clk 0:00:16.9]} 39... Nac6 {[%clk 0:00:07.6]} 40.
Qd5 {[%clk 0:00:16.8]} 40... Nf3+ {[%clk 0:00:07.2]} 41. Kg2 {[%clk 0:00:17.6]}
41... Nce5 {[%clk 0:00:08.9]} 42. Rb1 {[%clk 0:00:15]} 42... Ng4 {[%clk
0:00:04.8]} 43. h3 {[%clk 0:00:12.8]} 43... Nf6 {[%clk 0:00:04.2]} 44. Qd1
{[%clk 0:00:13.6]} 44... Ne5 {[%clk 0:00:05]} 45. Rxb6 {[%clk 0:00:13.9]} 45...
Rg7 {[%clk 0:00:06.6]} 46. Rb7 {[%clk 0:00:13.5]} 46... Nfd7 {[%clk 0:00:07.7]}
47. a4 {[%clk 0:00:13.9]} 47... e3 {[%clk 0:00:08.7]} 48. fxe3 {[%clk
0:00:14.2]} 48... Nc6 {[%clk 0:00:09.9]} 49. Qd5 {[%clk 0:00:12.8]} 49... Nd8
{[%clk 0:00:10.5]} 50. Rb3 {[%clk 0:00:12.4]} 50... Nf6 {[%clk 0:00:11.6]} 51.
Qc5 {[%clk 0:00:09.5]} 51... Ne6 {[%clk 0:00:12.6]} 52. Qe5 {[%clk 0:00:09]}
52... Nxf4+ {[%clk 0:00:08.4]} 53. gxf4 {[%clk 0:00:10.9]} 53... Qd8 {[%clk
0:00:07.6]} 54. Rc3 {[%clk 0:00:08.4]} 54... Qa8+ {[%clk 0:00:06.2]} 55. Kh2
{[%clk 0:00:08.6]} 55... Nd7 {[%clk 0:00:06.6]} 56. Qd4 {[%clk 0:00:08.8]} 56...
Qf3 {[%clk 0:00:07.3]} 57. Rc2 {[%clk 0:00:08.7]} 57... Re7 {[%clk 0:00:07.3]}
58. Nc4 {[%clk 0:00:08.6]} 58... Nf8 {[%clk 0:00:06.5]} 59. a5 {[%clk
0:00:08.9]} 59... Ne6 {[%clk 0:00:06]} 60. Qf6 {[%clk 0:00:09.9]} 60... Qd1
{[%clk 0:00:06.3]} 61. Rg2 {[%clk 0:00:10.3]} 61... Nxf4 {[%clk 0:00:04.6]} 62.
Qxe7+ {[%clk 0:00:11]} 1-0

[Event "*** Titled Tuesday Blitz"]
[Site "Chess.com"]
[Date "2019.10.01"]
[Round "5"]
[White "Orest_Vovk"]
[Black "SoltaniciR"]
[Result "1/2-1/2"]
[WhiteElo "2417"]
[BlackElo "2574"]
[TimeControl "180+2"]
[EndTime "14:13:55 PDT"]
[Termination "Game drawn - insufficient material"]

1. d4 {[%clk 0:03:01.9]} 1... Nf6 {[%clk 0:03:00.6]} 2. Nf3 {[%clk 0:03:01.4]}
2... e6 {[%clk 0:03:01.2]} 3. Bg5 {[%clk 0:03:02.1]} 3... c5 {[%clk 0:02:59.7]}
4. c3 {[%clk 0:03:02.2]} 4... Qb6 {[%clk 0:02:59.5]} 5. Qb3 {[%clk 0:02:55.8]}
5... Nc6 {[%clk 0:02:53.5]} 6. e3 {[%clk 0:02:55.2]} 6... d5 {[%clk 0:02:50.1]}
7. Na3 {[%clk 0:02:44.3]} 7... Ne4 {[%clk 0:02:44.8]} 8. Bf4 {[%clk 0:02:41.2]}
8... Bd6 {[%clk 0:02:23]} 9. Bxd6 {[%clk 0:02:26]} 9... Nxd6 {[%clk 0:02:23.4]}
10. Qxb6 {[%clk 0:02:24.3]} 10... axb6 {[%clk 0:02:23.8]} 11. Nb5 {[%clk
0:02:25.1]} 11... Nxb5 {[%clk 0:02:22]} 12. Bxb5 {[%clk 0:02:27]} 12... Bd7
{[%clk 0:02:23.3]} 13. Kd2 {[%clk 0:02:20.8]} 13... Ke7 {[%clk 0:02:23.3]} 14.
a3 {[%clk 0:02:17.3]} 14... Na5 {[%clk 0:02:12]} 15. Bxd7 {[%clk 0:02:09.3]}
15... Nb3+ {[%clk 0:02:09.3]} 16. Ke2 {[%clk 0:01:56.9]} 16... Nxa1 {[%clk
0:02:06.7]} 17. Bxe6 {[%clk 0:01:57.1]} 17... fxe6 {[%clk 0:02:03.6]} 18. Rxa1
{[%clk 0:01:57.9]} 18... Rhf8 {[%clk 0:01:54.8]} 19. Ne5 {[%clk 0:01:57.4]}
19... g5 {[%clk 0:01:42]} 20. f3 {[%clk 0:01:53.5]} 20... h5 {[%clk 0:01:40.9]}
21. Ng6+ {[%clk 0:01:47.2]} 21... Kd6 {[%clk 0:01:40.4]} 22. Nxf8 {[%clk
0:01:47.9]} 22... Rxf8 {[%clk 0:01:41.3]} 23. a4 {[%clk 0:01:45.5]} 23... Ra8
{[%clk 0:01:40.2]} 24. b4 {[%clk 0:01:44.9]} 24... cxb4 {[%clk 0:01:38]} 25.
cxb4 {[%clk 0:01:45.9]} 25... Rc8 {[%clk 0:01:39.2]} 26. Kd3 {[%clk 0:01:44.7]}
26... Rc4 {[%clk 0:01:39.4]} 27. Rb1 {[%clk 0:01:44.8]} 27... e5 {[%clk
0:01:33.4]} 28. dxe5+ {[%clk 0:01:30.9]} 28... Kxe5 {[%clk 0:01:34.5]} 29. Rb2
{[%clk 0:01:31.2]} 29... g4 {[%clk 0:01:28.5]} 30. a5 {[%clk 0:00:57.4]} 30...
b5 {[%clk 0:01:28.4]} 31. h3 {[%clk 0:00:42.4]} 31... gxf3 {[%clk 0:01:25]} 32.
gxf3 {[%clk 0:00:43]} 32... Ke6 {[%clk 0:00:59.9]} 33. Rg2 {[%clk 0:00:35.2]}
33... Rxb4 {[%clk 0:00:59.6]} 34. Rg6+ {[%clk 0:00:35.9]} 34... Kf5 {[%clk
0:00:54]} 35. Rb6 {[%clk 0:00:35.9]} 35... Ke5 {[%clk 0:00:32.8]} 36. f4+ {[%clk
0:00:31.9]} 36... Kf5 {[%clk 0:00:31.5]} 37. Rxb7 {[%clk 0:00:32.7]} 37... d4
{[%clk 0:00:25.4]} 38. exd4 {[%clk 0:00:25.4]} 38... Kxf4 {[%clk 0:00:25.9]} 39.
a6 {[%clk 0:00:25.8]} 39... Ra4 {[%clk 0:00:27.1]} 40. Rxb5 {[%clk 0:00:19.6]}
40... Rxa6 {[%clk 0:00:23.7]} 41. Rxh5 {[%clk 0:00:20.1]} 41... Ra1 {[%clk
0:00:21.4]} 42. Rh8 {[%clk 0:00:16.8]} 42... Kf5 {[%clk 0:00:20.1]} 43. Kc4
{[%clk 0:00:16.8]} 43... Ke6 {[%clk 0:00:20.6]} 44. d5+ {[%clk 0:00:16]} 44...
Kd7 {[%clk 0:00:21.4]} 45. Rh7+ {[%clk 0:00:17]} 45... Kd6 {[%clk 0:00:22]} 46.
Rh6+ {[%clk 0:00:18.3]} 46... Kd7 {[%clk 0:00:23.6]} 47. d6 {[%clk 0:00:18.3]}
47... Ra5 {[%clk 0:00:23.5]} 48. h4 {[%clk 0:00:15.9]} 48... Rf5 {[%clk
0:00:24.4]} 49. h5 {[%clk 0:00:15.6]} 49... Ra5 {[%clk 0:00:25]} 50. Kd4 {[%clk
0:00:15.8]} 50... Rb5 {[%clk 0:00:26.4]} 51. Ke4 {[%clk 0:00:16.7]} 51... Ra5
{[%clk 0:00:24.8]} 52. Kf4 {[%clk 0:00:16]} 52... Rb5 {[%clk 0:00:26]} 53. Kg4
{[%clk 0:00:17.2]} 53... Rb4+ {[%clk 0:00:25]} 54. Kf5 {[%clk 0:00:17.3]} 54...
Rb5+ {[%clk 0:00:25.8]} 55. Kf6 {[%clk 0:00:18.5]} 55... Kxd6 {[%clk 0:00:27]}
56. Kf7+ {[%clk 0:00:16.6]} 56... Kd7 {[%clk 0:00:28.1]} 57. Rh7 {[%clk
0:00:14.8]} 57... Rf5+ {[%clk 0:00:19.1]} 58. Kg8+ {[%clk 0:00:05.6]} 58... Ke6
{[%clk 0:00:17.9]} 59. h6 {[%clk 0:00:06.9]} 59... Ra5 {[%clk 0:00:15.5]} 60.
Rb7 {[%clk 0:00:05.2]} 60... Kf6 {[%clk 0:00:14.2]} 61. Rf7+ {[%clk 0:00:04.3]}
61... Kg6 {[%clk 0:00:14.7]} 62. h7 {[%clk 0:00:04.7]} 62... Ra8+ {[%clk
0:00:15.5]} 63. Rf8 {[%clk 0:00:06]} 63... Rxf8+ {[%clk 0:00:16.4]} 64. Kxf8
{[%clk 0:00:07.1]} 64... Kxh7 {[%clk 0:00:17.7]} 1/2-1/2

[Event "*** Titled Tuesday Blitz"]
[Site "Chess.com"]
[Date "2019.10.01"]
[Round "5"]
[White "CastleOasisChess"]
[Black "Roenko_Artur"]
[Result "0-1"]
[WhiteElo "2003"]
[BlackElo "2250"]
[TimeControl "180+2"]
[EndTime "14:13:56 PDT"]
[Termination "Roenko_Artur won by resignation"]

1. d4 {[%clk 0:03:01.9]} 1... d5 {[%clk 0:03:00.7]} 2. e3 {[%clk 0:03:02.6]}
2... e6 {[%clk 0:03:02]} 3. Bd3 {[%clk 0:03:04.1]} 3... c5 {[%clk 0:03:03.3]} 4.
c3 {[%clk 0:03:04.2]} 4... Nc6 {[%clk 0:03:04.2]} 5. Nd2 {[%clk 0:03:04.2]} 5...
Nf6 {[%clk 0:03:05.6]} 6. f4 {[%clk 0:03:05]} 6... Bd6 {[%clk 0:03:05]} 7. g3
{[%clk 0:03:00.5]} 7... b6 {[%clk 0:03:06]} 8. Ngf3 {[%clk 0:03:00.1]} 8... Bb7
{[%clk 0:03:06.5]} 9. Ne5 {[%clk 0:02:59.3]} 9... Ne7 {[%clk 0:03:07.2]} 10. O-O
{[%clk 0:02:59.7]} 10... O-O {[%clk 0:03:07.8]} 11. Qf3 {[%clk 0:03:00.2]} 11...
Qc7 {[%clk 0:02:33.3]} 12. Qg2 {[%clk 0:02:56.7]} 12... Nf5 {[%clk 0:02:19.8]}
13. Re1 {[%clk 0:02:30.7]} 13... Be7 {[%clk 0:02:18.8]} 14. g4 {[%clk
0:02:02.5]} 14... Nd6 {[%clk 0:02:18.9]} 15. g5 {[%clk 0:01:59.4]} 15... Nfe4
{[%clk 0:02:19.5]} 16. h4 {[%clk 0:01:51]} 16... f6 {[%clk 0:01:52.1]} 17. gxf6
{[%clk 0:01:49.7]} 17... Bxf6 {[%clk 0:01:52.8]} 18. Ndf3 {[%clk 0:01:49.2]}
18... Nf5 {[%clk 0:01:45.3]} 19. Qh2 {[%clk 0:01:23.5]} 19... Qe7 {[%clk
0:01:29.7]} 20. Ng5 {[%clk 0:01:21.5]} 20... Bxe5 {[%clk 0:01:16.1]} 21. dxe5
{[%clk 0:01:03.8]} 21... Rad8 {[%clk 0:01:15.2]} 22. Re2 {[%clk 0:00:31.8]}
22... c4 {[%clk 0:01:12.1]} 23. Bc2 {[%clk 0:00:28]} 23... Kh8 {[%clk
0:01:01.3]} 24. Rg2 {[%clk 0:00:28.6]} 24... b5 {[%clk 0:00:49.7]} 25. a3 {[%clk
0:00:28.7]} 25... a5 {[%clk 0:00:49.4]} 26. Bd2 {[%clk 0:00:29.8]} 26... Nxd2
{[%clk 0:00:48.5]} 27. Rxd2 {[%clk 0:00:30.5]} 27... Nxe3 {[%clk 0:00:45.9]} 28.
Bxh7 {[%clk 0:00:18]} 28... d4 {[%clk 0:00:46.5]} 29. Be4 {[%clk 0:00:16.4]}
29... dxc3 {[%clk 0:00:41.2]} 30. bxc3 {[%clk 0:00:15.6]} 30... Ng4 {[%clk
0:00:33.3]} 31. Qe2 {[%clk 0:00:12.7]} 31... Rxd2 {[%clk 0:00:30.1]} 32. Qxd2
{[%clk 0:00:12.2]} 32... Bxe4 {[%clk 0:00:31.1]} 33. Nxe4 {[%clk 0:00:13.3]}
33... Qxh4 {[%clk 0:00:32.2]} 34. Qg2 {[%clk 0:00:12.3]} 34... Rxf4 {[%clk
0:00:31.6]} 35. Ng3 {[%clk 0:00:11.8]} 35... Rf2 {[%clk 0:00:28.8]} 36. Qa8+
{[%clk 0:00:10.1]} 36... Kh7 {[%clk 0:00:28.5]} 37. Qh1 {[%clk 0:00:10.6]} 37...
Qxh1+ {[%clk 0:00:17.9]} 38. Nxh1 {[%clk 0:00:07.5]} 38... Rc2 {[%clk
0:00:16.3]} 39. Rb1 {[%clk 0:00:08.6]} 39... Nxe5 {[%clk 0:00:14.5]} 40. Rxb5
{[%clk 0:00:09.1]} 40... Nf3+ {[%clk 0:00:15.6]} 41. Kf1 {[%clk 0:00:09.8]}
41... Rxc3 {[%clk 0:00:15.1]} 42. Nf2 {[%clk 0:00:09.3]} 42... Rxa3 {[%clk
0:00:14.1]} 43. Ng4 {[%clk 0:00:10.7]} 43... c3 {[%clk 0:00:13.7]} 44. Rh5+
{[%clk 0:00:10.5]} 44... Kg6 {[%clk 0:00:14.5]} 45. Rc5 {[%clk 0:00:10.6]} 45...
Nd2+ {[%clk 0:00:14]} 46. Ke1 {[%clk 0:00:10.9]} 46... Ra1+ {[%clk 0:00:14.5]}
47. Ke2 {[%clk 0:00:10.8]} 47... Ra3 {[%clk 0:00:14.4]} 48. Ne5+ {[%clk
0:00:11.4]} 48... Kf6 {[%clk 0:00:14]} 49. Nd3 {[%clk 0:00:12.2]} 49... Ne4
{[%clk 0:00:13.3]} 50. Rc4 {[%clk 0:00:11.2]} 50... Nd6 {[%clk 0:00:13]} 51.
Rf4+ {[%clk 0:00:12]} 51... Nf5 {[%clk 0:00:14.2]} 52. Kd1 {[%clk 0:00:09.5]}
52... e5 {[%clk 0:00:15]} 53. Rf2 {[%clk 0:00:08.2]} 53... Ra1+ {[%clk
0:00:12.5]} 54. Kc2 {[%clk 0:00:07.1]} 54... Ra2+ {[%clk 0:00:13.8]} 55. Kxc3
{[%clk 0:00:08.4]} 55... Rxf2 {[%clk 0:00:15.1]} 56. Nxf2 {[%clk 0:00:10.3]}
56... Nd6 {[%clk 0:00:15.4]} 57. Kb3 {[%clk 0:00:10.8]} 57... e4 {[%clk
0:00:16.4]} 58. Ka4 {[%clk 0:00:12.2]} 58... e3 {[%clk 0:00:17.8]} 59. Nd3
{[%clk 0:00:13]} 59... Kf5 {[%clk 0:00:14.8]} 60. Kxa5 {[%clk 0:00:13.7]} 60...
Ke4 {[%clk 0:00:16.2]} 61. Ne1 {[%clk 0:00:13.8]} 61... e2 {[%clk 0:00:16.7]}
62. Kb4 {[%clk 0:00:14.9]} 62... Ke3 {[%clk 0:00:17.6]} 63. Kc3 {[%clk 0:00:16]}
63... Ne4+ {[%clk 0:00:19]} 64. Kc4 {[%clk 0:00:16.4]} 64... Kf2 {[%clk
0:00:18.9]} 65. Nd3+ {[%clk 0:00:16.9]} 65... Kf1 {[%clk 0:00:20.1]} 66. Kd4
{[%clk 0:00:17]} 66... Nf2 {[%clk 0:00:19.8]} 0-1

[Event "*** Titled Tuesday Blitz"]
[Site "Chess.com"]
[Date "2019.10.01"]
[Round "5"]
[White "FMJoseHerrera"]
[Black "Rsnr"]
[Result "0-1"]
[WhiteElo "2526"]
[BlackElo "2772"]
[TimeControl "180+2"]
[EndTime "14:14:14 PDT"]
[Termination "Rsnr won on time"]

1. Nf3 {[%clk 0:03:01.9]} 1... d5 {[%clk 0:03:01]} 2. g3 {[%clk 0:03:01.2]} 2...
c6 {[%clk 0:03:01.9]} 3. Bg2 {[%clk 0:03:01.5]} 3... Bf5 {[%clk 0:03:03.5]} 4.
d3 {[%clk 0:03:02]} 4... e6 {[%clk 0:03:04.8]} 5. O-O {[%clk 0:03:02.4]} 5... h6
{[%clk 0:03:06.3]} 6. c3 {[%clk 0:03:02.9]} 6... Nf6 {[%clk 0:03:07.8]} 7. Qb3
{[%clk 0:03:03.6]} 7... Qb6 {[%clk 0:03:05]} 8. Be3 {[%clk 0:03:03.9]} 8... Qxb3
{[%clk 0:02:51.1]} 9. axb3 {[%clk 0:03:04.1]} 9... a6 {[%clk 0:02:53]} 10. b4
{[%clk 0:03:05.1]} 10... Nbd7 {[%clk 0:02:53.8]} 11. Nbd2 {[%clk 0:03:05.6]}
11... Bd6 {[%clk 0:02:51.1]} 12. Nb3 {[%clk 0:03:06]} 12... Bc7 {[%clk
0:02:39.2]} 13. Na5 {[%clk 0:03:04.4]} 13... Bxa5 {[%clk 0:02:40.3]} 14. bxa5
{[%clk 0:03:06.3]} 14... O-O {[%clk 0:02:38.2]} 15. Ra3 {[%clk 0:03:06.3]} 15...
Ng4 {[%clk 0:02:05.2]} 16. Bd2 {[%clk 0:03:03.3]} 16... e5 {[%clk 0:02:02.7]}
17. Rb3 {[%clk 0:03:02.6]} 17... Rab8 {[%clk 0:02:03.6]} 18. Rb4 {[%clk
0:02:54]} 18... c5 {[%clk 0:02:02.1]} 19. Ra4 {[%clk 0:02:51]} 19... Ngf6 {[%clk
0:01:56]} 20. d4 {[%clk 0:02:28.1]} 20... e4 {[%clk 0:01:20.4]} 21. Ne1 {[%clk
0:02:16.4]} 21... b5 {[%clk 0:01:21.6]} 22. Ra1 {[%clk 0:02:06.6]} 22... cxd4
{[%clk 0:01:06.5]} 23. cxd4 {[%clk 0:02:08.5]} 23... Rfc8 {[%clk 0:01:08.1]} 24.
Bf4 {[%clk 0:02:07.4]} 24... Rb7 {[%clk 0:01:08.7]} 25. f3 {[%clk 0:02:02.1]}
25... Rc4 {[%clk 0:01:05]} 26. b3 {[%clk 0:01:52.1]} 26... Rc3 {[%clk
0:00:53.7]} 27. fxe4 {[%clk 0:01:37.3]} 27... Bxe4 {[%clk 0:00:52]} 28. Bh3
{[%clk 0:01:35]} 28... Rxb3 {[%clk 0:00:43.8]} 29. Rc1 {[%clk 0:01:35.6]} 29...
Ra3 {[%clk 0:00:44.8]} 30. Rc8+ {[%clk 0:01:36]} 30... Kh7 {[%clk 0:00:45.8]}
31. Nd3 {[%clk 0:01:24.1]} 31... b4 {[%clk 0:00:43.3]} 32. Nc5 {[%clk
0:01:17.5]} 32... Nxc5 {[%clk 0:00:41.1]} 33. dxc5 {[%clk 0:01:19.4]} 33... Rc3
{[%clk 0:00:11.3]} 34. c6 {[%clk 0:01:18.5]} 34... Rb5 {[%clk 0:00:12.8]} 35.
Be5 {[%clk 0:01:03.1]} 35... Rc2 {[%clk 0:00:13.2]} 36. c7 {[%clk 0:00:44.5]}
36... Rbc5 {[%clk 0:00:14.5]} 37. Rb8 {[%clk 0:00:45.9]} 37... Rxc7 {[%clk
0:00:14.1]} 38. Bxc7 {[%clk 0:00:47.8]} 38... Rxc7 {[%clk 0:00:15.7]} 39. Rxb4
{[%clk 0:00:49.7]} 39... Rc5 {[%clk 0:00:17]} 40. Ra4 {[%clk 0:00:49.3]} 40...
Rc2 {[%clk 0:00:16]} 41. Kf2 {[%clk 0:00:34.8]} 41... Bd3 {[%clk 0:00:15.3]} 42.
Ke3 {[%clk 0:00:27.6]} 42... Be4 {[%clk 0:00:16.7]} 43. Bf5+ {[%clk 0:00:24.5]}
43... Bxf5 {[%clk 0:00:15.3]} 44. Rxf5 {[%clk 0:00:26.4]} 44... Kg6 {[%clk
0:00:16.3]} 45. Re5 {[%clk 0:00:25.7]} 45... Rc1 {[%clk 0:00:10.9]} 46. Re7
{[%clk 0:00:21.6]} 46... Rc6 {[%clk 0:00:10.7]} 47. Ra7 {[%clk 0:00:21.9]} 47...
Ne4 {[%clk 0:00:10.6]} 48. Kd4 {[%clk 0:00:21]} 48... Nc3 {[%clk 0:00:10.2]} 49.
Rb4 {[%clk 0:00:11.8]} 49... Nb5+ {[%clk 0:00:11.5]} 50. Rxb5 {[%clk 0:00:13.2]}
50... axb5 {[%clk 0:00:13.4]} 51. Kxd5 {[%clk 0:00:14.8]} 51... Rc2 {[%clk
0:00:12.7]} 52. Rb7 {[%clk 0:00:16.2]} 52... Rxe2 {[%clk 0:00:06.9]} 53. Kc5
{[%clk 0:00:16.9]} 53... Rxh2 {[%clk 0:00:07.2]} 54. Rxb5 {[%clk 0:00:15.8]}
54... Ra2 {[%clk 0:00:08.1]} 55. Rb6+ {[%clk 0:00:15.6]} 55... Kg5 {[%clk
0:00:08.8]} 56. a6 {[%clk 0:00:17]} 56... Kg4 {[%clk 0:00:10]} 57. Kd4 {[%clk
0:00:18.5]} 57... Kxg3 {[%clk 0:00:09.8]} 58. Ke4 {[%clk 0:00:20]} 58... g5
{[%clk 0:00:09.8]} 59. Kf5 {[%clk 0:00:20.9]} 59... Ra5+ {[%clk 0:00:08.9]} 60.
Kf6 {[%clk 0:00:22.2]} 60... h5 {[%clk 0:00:10]} 61. a7 {[%clk 0:00:21.4]} 61...
g4 {[%clk 0:00:09.6]} 62. Rb3+ {[%clk 0:00:20.2]} 62... Kh4 {[%clk 0:00:09.5]}
63. Rb7 {[%clk 0:00:18.7]} 63... g3 {[%clk 0:00:10.5]} 64. Rxf7 {[%clk
0:00:19.3]} 64... Kh3 {[%clk 0:00:08.5]} 65. Rg7 {[%clk 0:00:21.2]} 65... h4
{[%clk 0:00:09]} 0-1